[Event "*** SCC Grand Prix: Titled Tuesday Blitz"]
[Site "Chess.com"]
[Date "2020.07.14"]
[Round "10"]
[White "EvgenyRomanov"]
[Black "lucachess49"]
[Result "1-0"]
[WhiteElo "2599"]
[BlackElo "2439"]
[TimeControl "180+1"]
[EndTime "11:58:55 PDT"]
[Termination "EvgenyRomanov won by resignation"]

1. d4 {[%clk 0:03:00.9]} 1... Nf6 {[%clk 0:02:59.5]} 2. Nf3 {[%clk 0:03:00]}
2... e6 {[%clk 0:02:58.8]} 3. Bf4 {[%clk 0:02:59.4]} 3... b6 {[%clk 0:02:58.4]}
4. e3 {[%clk 0:02:58.7]} 4... Bb7 {[%clk 0:02:59]} 5. Bd3 {[%clk 0:02:58.2]}
5... d6 {[%clk 0:02:59.1]} 6. O-O {[%clk 0:02:57.2]} 6... Nbd7 {[%clk
0:02:59.6]} 7. c4 {[%clk 0:02:56.9]} 7... Qe7 {[%clk 0:02:59.8]} 8. Bg3 {[%clk
0:02:40]} 8... g6 {[%clk 0:02:58.1]} 9. Nc3 {[%clk 0:02:39.1]} 9... Bg7 {[%clk
0:02:58.3]} 10. e4 {[%clk 0:02:38.6]} 10... O-O {[%clk 0:02:57.1]} 11. Re1
{[%clk 0:02:38.1]} 11... e5 {[%clk 0:02:49.3]} 12. Nd5 {[%clk 0:02:37.6]} 12...
Nxd5 {[%clk 0:02:48.9]} 13. exd5 {[%clk 0:02:37.6]} 13... f6 {[%clk 0:02:45.5]}
14. dxe5 {[%clk 0:02:34.1]} 14... fxe5 {[%clk 0:02:45]} 15. Bh4 {[%clk
0:02:27.1]} 15... Bf6 {[%clk 0:02:42.9]} 16. Bg3 {[%clk 0:02:19.3]} 16... a5
{[%clk 0:02:37.6]} 17. b3 {[%clk 0:02:07.7]} 17... Nc5 {[%clk 0:02:35.9]} 18.
Bc2 {[%clk 0:02:06.8]} 18... Qg7 {[%clk 0:02:33.4]} 19. Nd2 {[%clk 0:02:01.3]}
19... h5 {[%clk 0:02:00.7]} 20. h3 {[%clk 0:01:59.4]} 20... h4 {[%clk 0:01:55]}
21. Bh2 {[%clk 0:01:59.1]} 21... e4 {[%clk 0:01:55.3]} 22. Rb1 {[%clk
0:01:33.7]} 22... Bd4 {[%clk 0:01:54.9]} 23. Re2 {[%clk 0:01:33.3]} 23... Rae8
{[%clk 0:01:39.2]} 24. Nf1 {[%clk 0:01:15.2]} 24... Nd3 {[%clk 0:01:29.1]} 25.
Bxd3 {[%clk 0:01:10.6]} 25... exd3 {[%clk 0:01:30]} 26. Rxe8 {[%clk 0:01:10]}
26... Bxf2+ {[%clk 0:01:30.4]} 27. Kh1 {[%clk 0:01:10]} 27... Rxe8 {[%clk
0:01:31.3]} 28. Qxd3 {[%clk 0:01:09.3]} 28... Bc8 {[%clk 0:01:30.9]} 29. Rd1
{[%clk 0:01:02.8]} 29... Bf5 {[%clk 0:01:29.4]} 30. Qf3 {[%clk 0:01:02.4]} 30...
Bc5 {[%clk 0:01:28.2]} 31. Bf4 {[%clk 0:01:01.3]} 31... Qd7 {[%clk 0:01:20.6]}
32. Kh2 {[%clk 0:00:53.1]} 32... Be4 {[%clk 0:00:55.7]} 33. Qc3 {[%clk
0:00:52.9]} 33... Qf5 {[%clk 0:00:43.4]} 34. Bh6 {[%clk 0:00:52.1]} 34... Qe5+
{[%clk 0:00:43.1]} 35. Qxe5 {[%clk 0:00:51.3]} 35... Rxe5 {[%clk 0:00:44]} 36.
Nd2 {[%clk 0:00:46.4]} 36... Bc2 {[%clk 0:00:39.7]} 37. Rf1 {[%clk 0:00:44.2]}
37... Re2 {[%clk 0:00:37.8]} 38. Nf3 {[%clk 0:00:38.5]} 38... Be4 {[%clk
0:00:32.8]} 39. Nxh4 {[%clk 0:00:37.8]} 39... Rxa2 {[%clk 0:00:33.1]} 40. Rf4
{[%clk 0:00:36.5]} 40... Re2 {[%clk 0:00:26.4]} 41. Nf3 {[%clk 0:00:31.9]} 41...
Bxf3 {[%clk 0:00:12.8]} 42. Rxf3 {[%clk 0:00:32.8]} 42... Kh7 {[%clk 0:00:12.6]}
43. Bg5 {[%clk 0:00:31.1]} 43... Rb2 {[%clk 0:00:11.8]} 44. Bd8 {[%clk 0:00:30]}
44... Bd4 {[%clk 0:00:08.1]} 45. h4 {[%clk 0:00:26.5]} 45... Be5+ {[%clk
0:00:08.2]} 46. Kh3 {[%clk 0:00:26.7]} 46... Rd2 {[%clk 0:00:04.1]} 47. Bxc7
{[%clk 0:00:25.2]} 47... Bd4 {[%clk 0:00:04.5]} 48. Bxd6 {[%clk 0:00:23.8]} 1-0

[Event "*** SCC Grand Prix: Titled Tuesday Blitz"]
[Site "Chess.com"]
[Date "2020.07.14"]
[Round "10"]
[White "Klavdia_Nik"]
[Black "BikingBrian"]
[Result "0-1"]
[WhiteElo "2047"]
[BlackElo "2195"]
[TimeControl "180+1"]
[EndTime "11:58:55 PDT"]
[Termination "BikingBrian won on time"]

1. Nf3 {[%clk 0:03:00.9]} 1... g6 {[%clk 0:02:58.7]} 2. c4 {[%clk 0:02:59.8]}
2... Bg7 {[%clk 0:02:58.1]} 3. d4 {[%clk 0:02:57.3]} 3... Nf6 {[%clk 0:02:57.8]}
4. Nc3 {[%clk 0:02:57.2]} 4... O-O {[%clk 0:02:58]} 5. e4 {[%clk 0:02:57.6]}
5... d6 {[%clk 0:02:58.5]} 6. Be2 {[%clk 0:02:57]} 6... Na6 {[%clk 0:02:58.8]}
7. O-O {[%clk 0:02:49.9]} 7... e5 {[%clk 0:02:58]} 8. Re1 {[%clk 0:02:48]} 8...
c6 {[%clk 0:02:55.5]} 9. Bf1 {[%clk 0:02:47]} 9... exd4 {[%clk 0:02:53.4]} 10.
Nxd4 {[%clk 0:02:46.3]} 10... Ng4 {[%clk 0:02:53.4]} 11. h3 {[%clk 0:01:48.5]}
11... Qb6 {[%clk 0:02:50.6]} 12. Nce2 {[%clk 0:01:37.4]} 12... Ne5 {[%clk
0:01:38.6]} 13. b3 {[%clk 0:01:34.5]} 13... Nc5 {[%clk 0:01:35.1]} 14. Nc3
{[%clk 0:00:43.2]} 14... f5 {[%clk 0:01:25.9]} 15. exf5 {[%clk 0:00:32.4]} 15...
Bxf5 {[%clk 0:01:25.1]} 16. Be3 {[%clk 0:00:28.6]} 16... Qc7 {[%clk 0:01:16.1]}
17. Nxf5 {[%clk 0:00:28.3]} 17... Rxf5 {[%clk 0:01:15]} 18. b4 {[%clk 0:00:18]}
18... Ne6 {[%clk 0:01:08.9]} 19. Rc1 {[%clk 0:00:17.2]} 19... Nf4 {[%clk
0:00:56.6]} 20. Ne4 {[%clk 0:00:16]} 20... Rd8 {[%clk 0:00:51.9]} 21. g3 {[%clk
0:00:14]} 21... Nf3+ {[%clk 0:00:36]} 22. Kh1 {[%clk 0:00:13.7]} 22... Ne6
{[%clk 0:00:31.4]} 23. Re2 {[%clk 0:00:12.7]} 23... Nfd4 {[%clk 0:00:23.7]} 24.
Rd2 {[%clk 0:00:11.8]} 24... c5 {[%clk 0:00:21.6]} 25. b5 {[%clk 0:00:11]} 25...
d5 {[%clk 0:00:19.7]} 26. cxd5 {[%clk 0:00:09.3]} 26... Rfxd5 {[%clk 0:00:20.6]}
27. Bg2 {[%clk 0:00:09.2]} 27... R5d7 {[%clk 0:00:18]} 28. Nc3 {[%clk
0:00:08.7]} 28... b6 {[%clk 0:00:17.6]} 29. Nd5 {[%clk 0:00:08.5]} 29... Qe5
{[%clk 0:00:14.5]} 30. Nf4 {[%clk 0:00:07.8]} 30... Nxf4 {[%clk 0:00:13.7]} 31.
Bxf4 {[%clk 0:00:07.9]} 31... Qf6 {[%clk 0:00:12.4]} 32. Qg4 {[%clk 0:00:05.6]}
32... Kh8 {[%clk 0:00:12.1]} 33. Re1 {[%clk 0:00:04.2]} 33... Nf5 {[%clk
0:00:10.3]} 34. Rxd7 {[%clk 0:00:03.3]} 34... Rxd7 {[%clk 0:00:11.2]} 35. Re8+
{[%clk 0:00:03.1]} 35... Bf8 {[%clk 0:00:11]} 36. Qe2 {[%clk 0:00:02.2]} 36...
Kg8 {[%clk 0:00:10.1]} 37. Kh2 {[%clk 0:00:02.4]} 37... Qf7 {[%clk 0:00:10.1]}
38. Bg5 {[%clk 0:00:01.4]} 38... h6 {[%clk 0:00:07.6]} 39. Bc6 {[%clk
0:00:01.3]} 39... hxg5 {[%clk 0:00:05.3]} 0-1

[Event "*** SCC Grand Prix: Titled Tuesday Blitz"]
[Site "Chess.com"]
[Date "2020.07.14"]
[Round "10"]
[White "WPWPWP-2015"]
[Black "Chessdreamer2020"]
[Result "0-1"]
[WhiteElo "2439"]
[BlackElo "2580"]
[TimeControl "180+1"]
[EndTime "11:58:56 PDT"]
[Termination "Chessdreamer2020 won on time"]

1. e4 {[%clk 0:02:45.7]} 1... d6 {[%clk 0:02:57.7]} 2. d4 {[%clk 0:02:38.8]}
2... Nf6 {[%clk 0:02:56.7]} 3. Nc3 {[%clk 0:02:37.8]} 3... e5 {[%clk 0:02:54.3]}
4. Nf3 {[%clk 0:02:28.7]} 4... Nbd7 {[%clk 0:02:49.1]} 5. Bc4 {[%clk 0:02:25.9]}
5... Be7 {[%clk 0:02:43.1]} 6. O-O {[%clk 0:02:24.4]} 6... O-O {[%clk 0:02:41]}
7. a4 {[%clk 0:02:23.7]} 7... a5 {[%clk 0:02:36.6]} 8. Re1 {[%clk 0:02:23.1]}
8... h6 {[%clk 0:02:17.4]} 9. h3 {[%clk 0:02:22.5]} 9... Re8 {[%clk 0:02:17.4]}
10. b3 {[%clk 0:02:20]} 10... Bf8 {[%clk 0:02:15.6]} 11. Bb2 {[%clk 0:02:16.9]}
11... c6 {[%clk 0:02:12.2]} 12. Qd2 {[%clk 0:02:11.9]} 12... Qc7 {[%clk
0:02:09.5]} 13. Rad1 {[%clk 0:02:10.2]} 13... exd4 {[%clk 0:01:53.3]} 14. Nxd4
{[%clk 0:02:08]} 14... Nc5 {[%clk 0:01:53.8]} 15. f3 {[%clk 0:02:03.2]} 15...
Bd7 {[%clk 0:01:43.2]} 16. Nde2 {[%clk 0:01:53.6]} 16... Rad8 {[%clk 0:01:42.5]}
17. Nf4 {[%clk 0:01:49.8]} 17... Bc8 {[%clk 0:01:41.1]} 18. Nce2 {[%clk
0:01:29.4]} 18... Nfd7 {[%clk 0:01:31.9]} 19. Nd4 {[%clk 0:01:08.2]} 19... Ne5
{[%clk 0:01:22.9]} 20. Bf1 {[%clk 0:01:07.5]} 20... g6 {[%clk 0:01:12.8]} 21.
Nd3 {[%clk 0:00:51.4]} 21... Bg7 {[%clk 0:01:11.9]} 22. Nf2 {[%clk 0:00:50]}
22... d5 {[%clk 0:01:09]} 23. f4 {[%clk 0:00:48.1]} 23... Ned7 {[%clk
0:00:59.7]} 24. e5 {[%clk 0:00:47.7]} 24... Nf8 {[%clk 0:00:59.5]} 25. Nf3
{[%clk 0:00:42.1]} 25... Ne4 {[%clk 0:00:58.2]} 26. Qe3 {[%clk 0:00:36.2]} 26...
Ng3 {[%clk 0:00:45.8]} 27. Bd3 {[%clk 0:00:29.6]} 27... Nf5 {[%clk 0:00:43.4]}
28. Bxf5 {[%clk 0:00:16.3]} 28... Bxf5 {[%clk 0:00:43.1]} 29. Bd4 {[%clk
0:00:16.4]} 29... Nd7 {[%clk 0:00:37.4]} 30. Nd3 {[%clk 0:00:14.5]} 30... b6
{[%clk 0:00:36]} 31. g4 {[%clk 0:00:13.5]} 31... Be4 {[%clk 0:00:35.2]} 32. Nd2
{[%clk 0:00:08]} 32... c5 {[%clk 0:00:35.4]} 33. Bb2 {[%clk 0:00:07.3]} 33...
Bxd3 {[%clk 0:00:33.9]} 34. cxd3 {[%clk 0:00:07.3]} 34... d4 {[%clk 0:00:32.2]}
35. Qf3 {[%clk 0:00:06.6]} 35... g5 {[%clk 0:00:31.1]} 36. Ne4 {[%clk
0:00:04.5]} 36... gxf4 {[%clk 0:00:29.9]} 37. Qxf4 {[%clk 0:00:02.2]} 37... Qxe5
{[%clk 0:00:29.8]} 38. Qxe5 {[%clk 0:00:01.9]} 38... Nxe5 {[%clk 0:00:29.6]} 39.
Bc1 {[%clk 0:00:01.6]} 39... Re6 {[%clk 0:00:26.8]} 40. Rf1 {[%clk 0:00:01.1]}
40... Nxd3 {[%clk 0:00:25]} 41. Ng3 {[%clk 0:00:01.3]} 41... Nxc1 {[%clk
0:00:24.1]} 42. Rxc1 {[%clk 0:00:01.8]} 42... Re3 {[%clk 0:00:23.9]} 43. Nf5
{[%clk 0:00:02]} 43... Rxh3 {[%clk 0:00:23.2]} 44. Rb1 {[%clk 0:00:01.3]} 44...
Re8 {[%clk 0:00:20.6]} 45. Kg2 {[%clk 0:00:01.6]} 45... Rc3 {[%clk 0:00:19.6]}
0-1

[Event "*** SCC Grand Prix: Titled Tuesday Blitz"]
[Site "Chess.com"]
[Date "2020.07.14"]
[Round "10"]
[White "Xeniya2005"]
[Black "deep306"]
[Result "0-1"]
[WhiteElo "2389"]
[BlackElo "2584"]
[TimeControl "180+1"]
[EndTime "11:58:58 PDT"]
[Termination "deep306 won on time"]

1. e4 {[%clk 0:03:00.9]} 1... c5 {[%clk 0:02:59.9]} 2. Be2 {[%clk 0:03:00.2]}
2... Nc6 {[%clk 0:02:59]} 3. f4 {[%clk 0:03:00]} 3... d6 {[%clk 0:02:53.8]} 4.
Nf3 {[%clk 0:02:59.4]} 4... g6 {[%clk 0:02:54]} 5. O-O {[%clk 0:02:56.5]} 5...
Bg7 {[%clk 0:02:54.4]} 6. c3 {[%clk 0:02:56.3]} 6... Qb6 {[%clk 0:02:35.8]} 7.
d3 {[%clk 0:02:49.7]} 7... e6 {[%clk 0:02:33.3]} 8. Kh1 {[%clk 0:02:46.2]} 8...
Nge7 {[%clk 0:02:33.1]} 9. Nbd2 {[%clk 0:02:40.9]} 9... d5 {[%clk 0:02:32.7]}
10. e5 {[%clk 0:02:36.5]} 10... Bd7 {[%clk 0:02:31.8]} 11. Nb3 {[%clk
0:02:34.1]} 11... Na5 {[%clk 0:02:26.1]} 12. Nxa5 {[%clk 0:02:32.2]} 12... Qxa5
{[%clk 0:02:26]} 13. Be3 {[%clk 0:02:32]} 13... Rc8 {[%clk 0:02:21.2]} 14. a3
{[%clk 0:02:29.7]} 14... Qc7 {[%clk 0:02:20.2]} 15. Qd2 {[%clk 0:02:26.7]} 15...
b6 {[%clk 0:02:13.3]} 16. Rac1 {[%clk 0:02:21]} 16... Bb5 {[%clk 0:02:11]} 17.
b4 {[%clk 0:02:18.7]} 17... O-O {[%clk 0:02:00.3]} 18. Bg1 {[%clk 0:01:54.8]}
18... f6 {[%clk 0:01:45.6]} 19. d4 {[%clk 0:01:42.5]} 19... Bxe2 {[%clk
0:01:44.4]} 20. Qxe2 {[%clk 0:01:41.9]} 20... fxe5 {[%clk 0:01:41.6]} 21. fxe5
{[%clk 0:01:37.4]} 21... cxd4 {[%clk 0:01:36.7]} 22. cxd4 {[%clk 0:01:34.3]}
22... Qxc1 {[%clk 0:01:34.4]} 23. Rxc1 {[%clk 0:01:33.5]} 23... Rxc1 {[%clk
0:01:34.9]} 24. h3 {[%clk 0:01:33.3]} 24... Bh6 {[%clk 0:01:32.7]} 25. Kh2
{[%clk 0:01:07.6]} 25... Nf5 {[%clk 0:01:26]} 26. Bf2 {[%clk 0:01:02.1]} 26...
Rfc8 {[%clk 0:01:21.8]} 27. Ne1 {[%clk 0:00:47.9]} 27... R8c4 {[%clk 0:01:21.6]}
28. Qg4 {[%clk 0:00:37.5]} 28... R1c3 {[%clk 0:00:55.9]} 29. h4 {[%clk
0:00:33.5]} 29... Rxa3 {[%clk 0:00:50.4]} 30. h5 {[%clk 0:00:30.7]} 30... Kf7
{[%clk 0:00:47.6]} 31. hxg6+ {[%clk 0:00:28.5]} 31... hxg6 {[%clk 0:00:47.6]}
32. Nf3 {[%clk 0:00:25.4]} 32... Ra2 {[%clk 0:00:36.1]} 33. Bh4 {[%clk
0:00:16.9]} 33... Rcc2 {[%clk 0:00:31.6]} 34. Bg5 {[%clk 0:00:06.9]} 34... Rxg2+
{[%clk 0:00:20]} 35. Qxg2 {[%clk 0:00:07.8]} 35... Rxg2+ {[%clk 0:00:20.5]} 36.
Kxg2 {[%clk 0:00:08.7]} 36... a5 {[%clk 0:00:19.9]} 37. bxa5 {[%clk 0:00:04]}
37... bxa5 {[%clk 0:00:20]} 38. Bxh6 {[%clk 0:00:03.8]} 38... Nxh6 {[%clk
0:00:20]} 39. Nd2 {[%clk 0:00:03.4]} 39... Nf5 {[%clk 0:00:19.8]} 40. Nf3 {[%clk
0:00:03]} 40... a4 {[%clk 0:00:19.9]} 0-1

[Event "*** SCC Grand Prix: Titled Tuesday Blitz"]
[Site "Chess.com"]
[Date "2020.07.14"]
[Round "10"]
[White "AlexOstrovskiy"]
[Black "alexsergeyev"]
[Result "1/2-1/2"]
[WhiteElo "2592"]
[BlackElo "2354"]
[TimeControl "180+1"]
[EndTime "11:58:58 PDT"]
[Termination "Game drawn by repetition"]

1. d4 {[%clk 0:03:00.9]} 1... d5 {[%clk 0:02:59]} 2. Bf4 {[%clk 0:03:00.8]} 2...
c5 {[%clk 0:02:58.6]} 3. e4 {[%clk 0:03:00.7]} 3... dxe4 {[%clk 0:02:53.1]} 4.
d5 {[%clk 0:03:01.6]} 4... Nf6 {[%clk 0:02:44.3]} 5. Nc3 {[%clk 0:03:01.2]} 5...
Bd7 {[%clk 0:02:39.6]} 6. Qe2 {[%clk 0:02:54.6]} 6... g6 {[%clk 0:02:22.6]} 7.
O-O-O {[%clk 0:02:53.5]} 7... Bg7 {[%clk 0:02:22.4]} 8. Nxe4 {[%clk 0:02:53.3]}
8... O-O {[%clk 0:02:20.7]} 9. Nxc5 {[%clk 0:02:44.5]} 9... Qa5 {[%clk
0:02:17.5]} 10. Qc4 {[%clk 0:02:05.5]} 10... Rc8 {[%clk 0:02:13.8]} 11. Be3
{[%clk 0:01:46.9]} 11... b6 {[%clk 0:02:00.6]} 12. Nxd7 {[%clk 0:01:37.4]} 12...
Rxc4 {[%clk 0:01:48.9]} 13. Nxf6+ {[%clk 0:01:38.3]} 13... Bxf6 {[%clk
0:01:46.9]} 14. Bxc4 {[%clk 0:01:39.2]} 14... Nd7 {[%clk 0:01:42.6]} 15. Nf3
{[%clk 0:01:33.4]} 15... Rc8 {[%clk 0:01:40.8]} 16. Bb3 {[%clk 0:01:31.5]} 16...
Nc5 {[%clk 0:01:39.7]} 17. Kb1 {[%clk 0:01:28.6]} 17... Nxb3 {[%clk 0:01:19.8]}
18. axb3 {[%clk 0:01:29.2]} 18... Qb4 {[%clk 0:01:18.1]} 19. Nd4 {[%clk
0:01:20]} 19... a5 {[%clk 0:01:10.5]} 20. Nc6 {[%clk 0:01:15.6]} 20... Qg4
{[%clk 0:01:06]} 21. Bd4 {[%clk 0:00:50.1]} 21... Kg7 {[%clk 0:00:50.8]} 22.
Nxe7 {[%clk 0:00:45.7]} 22... Rxc2 {[%clk 0:00:25.3]} 23. Bxf6+ {[%clk
0:00:32.9]} 23... Kxf6 {[%clk 0:00:25.3]} 24. Kxc2 {[%clk 0:00:26.6]} 24... Kxe7
{[%clk 0:00:23.9]} 25. d6+ {[%clk 0:00:27.5]} 25... Kd7 {[%clk 0:00:23.8]} 26.
g3 {[%clk 0:00:21.4]} 26... Qf5+ {[%clk 0:00:21.9]} 27. Kc1 {[%clk 0:00:21.1]}
27... Qf3 {[%clk 0:00:18.1]} 28. Rhe1 {[%clk 0:00:19.8]} 28... Qxb3 {[%clk
0:00:17.9]} 29. Re3 {[%clk 0:00:18.2]} 29... Qa2 {[%clk 0:00:15.1]} 30. Rc3
{[%clk 0:00:12.8]} 30... Qa1+ {[%clk 0:00:13.9]} 31. Kc2 {[%clk 0:00:12.9]}
31... Qa4+ {[%clk 0:00:13.7]} 32. Kc1 {[%clk 0:00:09.1]} 32... Qa1+ {[%clk
0:00:13.3]} 33. Kc2 {[%clk 0:00:09.3]} 33... Qa4+ {[%clk 0:00:13.2]} 34. b3
{[%clk 0:00:05.9]} 34... Qa2+ {[%clk 0:00:13]} 35. Kc1 {[%clk 0:00:06.3]} 35...
Qa3+ {[%clk 0:00:12.8]} 36. Kb1 {[%clk 0:00:05.5]} 36... a4 {[%clk 0:00:11.5]}
37. Rc7+ {[%clk 0:00:04]} 37... Kd8 {[%clk 0:00:11.7]} 38. bxa4 {[%clk
0:00:04.4]} 38... Qb3+ {[%clk 0:00:10.6]} 39. Kc1 {[%clk 0:00:04.3]} 39... Qa3+
{[%clk 0:00:09.6]} 40. Kb1 {[%clk 0:00:04.4]} 40... Qb3+ {[%clk 0:00:09.4]} 41.
Kc1 {[%clk 0:00:04.8]} 41... Qa3+ {[%clk 0:00:09.5]} 42. Kb1 {[%clk 0:00:04.5]}
1/2-1/2

[Event "*** SCC Grand Prix: Titled Tuesday Blitz"]
[Site "Chess.com"]
[Date "2020.07.14"]
[Round "10"]
[White "ElCoachRene"]
[Black "VladaSviridova"]
[Result "0-1"]
[WhiteElo "2174"]
[BlackElo "2127"]
[TimeControl "180+1"]
[EndTime "11:58:58 PDT"]
[Termination "VladaSviridova won on time"]

1. d4 {[%clk 0:03:00.9]} 1... d5 {[%clk 0:03:00]} 2. Bf4 {[%clk 0:03:01.2]} 2...
Nf6 {[%clk 0:02:59.2]} 3. e3 {[%clk 0:03:01.5]} 3... c5 {[%clk 0:02:59.5]} 4. c3
{[%clk 0:03:01.2]} 4... Nc6 {[%clk 0:02:59.7]} 5. Bd3 {[%clk 0:03:00.1]} 5... e6
{[%clk 0:02:59.3]} 6. Nd2 {[%clk 0:02:58.1]} 6... Bd6 {[%clk 0:02:59.4]} 7. Bg3
{[%clk 0:02:57.5]} 7... O-O {[%clk 0:02:58]} 8. Ngf3 {[%clk 0:02:57]} 8... h6
{[%clk 0:02:33.9]} 9. Ne5 {[%clk 0:02:56.4]} 9... Qc7 {[%clk 0:02:28.4]} 10. f4
{[%clk 0:02:56.1]} 10... b6 {[%clk 0:02:09.2]} 11. Qf3 {[%clk 0:02:42.4]} 11...
Bb7 {[%clk 0:02:07]} 12. O-O {[%clk 0:02:40.5]} 12... Ne7 {[%clk 0:01:42.4]} 13.
a4 {[%clk 0:02:31.4]} 13... a5 {[%clk 0:01:35.3]} 14. Bf2 {[%clk 0:02:22.5]}
14... Nd7 {[%clk 0:01:19.5]} 15. Nxd7 {[%clk 0:02:12.8]} 15... Qxd7 {[%clk
0:01:18.3]} 16. Bh4 {[%clk 0:02:11]} 16... f5 {[%clk 0:01:14]} 17. g4 {[%clk
0:02:05]} 17... fxg4 {[%clk 0:01:07.6]} 18. Qxg4 {[%clk 0:02:03]} 18... Nf5
{[%clk 0:01:07.3]} 19. Bf2 {[%clk 0:01:58.7]} 19... cxd4 {[%clk 0:01:02.5]} 20.
exd4 {[%clk 0:01:57.1]} 20... Rf6 {[%clk 0:00:53.8]} 21. Rae1 {[%clk 0:01:46.5]}
21... Raf8 {[%clk 0:00:39.5]} 22. Kh1 {[%clk 0:01:45.2]} 22... Qxa4 {[%clk
0:00:28.5]} 23. Nf3 {[%clk 0:01:25.3]} 23... Qe8 {[%clk 0:00:20.8]} 24. Ne5
{[%clk 0:01:24.7]} 24... Bxe5 {[%clk 0:00:20.2]} 25. fxe5 {[%clk 0:01:19.6]}
25... Rg6 {[%clk 0:00:19.9]} 26. Qh3 {[%clk 0:01:13.7]} 26... Rg5 {[%clk
0:00:13.9]} 27. Bg1 {[%clk 0:00:36.5]} 27... Qh5 {[%clk 0:00:13.4]} 28. Qxh5
{[%clk 0:00:21.4]} 28... Rxh5 {[%clk 0:00:12.3]} 29. Kg2 {[%clk 0:00:15.4]}
29... Rg5+ {[%clk 0:00:11.8]} 30. Kh1 {[%clk 0:00:15]} 30... Rh5 {[%clk
0:00:10]} 31. Kg2 {[%clk 0:00:11.3]} 31... Rg5+ {[%clk 0:00:10.1]} 32. Kh1
{[%clk 0:00:07.5]} 32... Bc6 {[%clk 0:00:10.3]} 33. Bf2 {[%clk 0:00:05.3]} 33...
Be8 {[%clk 0:00:09.5]} 34. Bg3 {[%clk 0:00:05]} 34... Nxg3+ {[%clk 0:00:07.6]}
35. hxg3 {[%clk 0:00:05.9]} 35... Rxf1+ {[%clk 0:00:07.4]} 36. Rxf1 {[%clk
0:00:05.5]} 36... Rxg3 {[%clk 0:00:07.5]} 37. Be2 {[%clk 0:00:05.5]} 37... Bg6
{[%clk 0:00:07]} 38. Rf2 {[%clk 0:00:04.3]} 38... Be4+ {[%clk 0:00:06.3]} 39.
Kh2 {[%clk 0:00:04.1]} 39... Rg5 {[%clk 0:00:06]} 40. Rf4 {[%clk 0:00:02.1]}
40... Rg2+ {[%clk 0:00:05.1]} 41. Kh3 {[%clk 0:00:01.4]} 41... Rxe2 {[%clk
0:00:05.3]} 0-1

[Event "*** SCC Grand Prix: Titled Tuesday Blitz"]
[Site "Chess.com"]
[Date "2020.07.14"]
[Round "10"]
[White "Gabrielian_Artur"]
[Black "AldokhinIvan"]
[Result "1-0"]
[WhiteElo "2798"]
[BlackElo "2590"]
[TimeControl "180+1"]
[EndTime "11:59:00 PDT"]
[Termination "Gabrielian_Artur won by resignation"]

1. e4 {[%clk 0:03:00.9]} 1... c5 {[%clk 0:02:59.5]} 2. Nc3 {[%clk 0:03:00.5]}
2... e6 {[%clk 0:02:59.5]} 3. Nge2 {[%clk 0:02:58.8]} 3... Nc6 {[%clk
0:02:59.3]} 4. g3 {[%clk 0:02:58.8]} 4... d5 {[%clk 0:02:57]} 5. Bg2 {[%clk
0:02:58.8]} 5... d4 {[%clk 0:02:54.5]} 6. Nb1 {[%clk 0:02:58.9]} 6... d3 {[%clk
0:02:52]} 7. cxd3 {[%clk 0:02:58.9]} 7... Qxd3 {[%clk 0:02:39.6]} 8. O-O {[%clk
0:02:53.6]} 8... Nf6 {[%clk 0:02:38.9]} 9. Nbc3 {[%clk 0:02:51.8]} 9... Be7
{[%clk 0:02:37.3]} 10. Nf4 {[%clk 0:02:42.2]} 10... Qd8 {[%clk 0:02:18.9]} 11.
Re1 {[%clk 0:02:41.8]} 11... Bd6 {[%clk 0:02:02.2]} 12. d3 {[%clk 0:02:36]}
12... O-O {[%clk 0:02:01.6]} 13. Be3 {[%clk 0:02:31.7]} 13... Nd4 {[%clk
0:02:01.4]} 14. Rc1 {[%clk 0:02:18.7]} 14... e5 {[%clk 0:01:53.5]} 15. Nfd5
{[%clk 0:02:11.5]} 15... Ng4 {[%clk 0:01:29.8]} 16. Bxd4 {[%clk 0:02:07]} 16...
exd4 {[%clk 0:01:06.9]} 17. Nb5 {[%clk 0:02:03.9]} 17... a6 {[%clk 0:01:02.7]}
18. Nxd6 {[%clk 0:01:57.8]} 18... Qxd6 {[%clk 0:01:03.6]} 19. Qc2 {[%clk
0:01:57.7]} 19... Qh6 {[%clk 0:00:48.8]} 20. h3 {[%clk 0:01:40.4]} 20... Ne5
{[%clk 0:00:48.8]} 21. f4 {[%clk 0:01:28.6]} 21... Nc6 {[%clk 0:00:36.5]} 22. f5
{[%clk 0:01:27]} 22... Ne5 {[%clk 0:00:26.8]} 23. Red1 {[%clk 0:00:15.9]} 23...
b6 {[%clk 0:00:22.2]} 24. b4 {[%clk 0:00:15.4]} 24... cxb4 {[%clk 0:00:10.2]}
25. Qc7 {[%clk 0:00:15.3]} 25... f6 {[%clk 0:00:05.6]} 26. Qd6 {[%clk
0:00:10.3]} 26... Bd7 {[%clk 0:00:05.4]} 27. Rc7 {[%clk 0:00:09.7]} 27... Qe3+
{[%clk 0:00:04.7]} 28. Nxe3 {[%clk 0:00:09.2]} 28... dxe3 {[%clk 0:00:04.5]} 29.
Qd5+ {[%clk 0:00:09.6]} 29... Kh8 {[%clk 0:00:04.3]} 30. Rxd7 {[%clk 0:00:10.2]}
30... Nxd7 {[%clk 0:00:03.8]} 31. Qxd7 {[%clk 0:00:10]} 31... Rfd8 {[%clk
0:00:04.4]} 32. Qb7 {[%clk 0:00:09.1]} 32... Rab8 {[%clk 0:00:04.5]} 33. Qxa6
{[%clk 0:00:09.6]} 33... Rbc8 {[%clk 0:00:04.7]} 34. Qb5 {[%clk 0:00:09.4]}
34... Rc5 {[%clk 0:00:04.4]} 35. Qxb4 {[%clk 0:00:09.5]} 35... Rc2 {[%clk
0:00:04.6]} 36. Qxb6 {[%clk 0:00:09.2]} 36... Ra8 {[%clk 0:00:04.4]} 37. Qxe3
{[%clk 0:00:09.3]} 37... Raxa2 {[%clk 0:00:04.1]} 38. Qf3 {[%clk 0:00:09.9]}
38... h6 {[%clk 0:00:04]} 39. d4 {[%clk 0:00:10.4]} 39... Kh7 {[%clk 0:00:04.2]}
40. d5 {[%clk 0:00:11]} 40... Rd2 {[%clk 0:00:04.6]} 41. Rxd2 {[%clk 0:00:11.1]}
41... Rxd2 {[%clk 0:00:05.5]} 42. Qf4 {[%clk 0:00:11.5]} 1-0